bitfinex/quotes_SOLUSD_20240930
["timestamp","ask_amount","ask_price","bid_price","bid_amount"]
[1727660118387,6.6417,159.83,159.75,21.9085]
[1727660118388,7.82257153,159.8,159.75,15.6489]
[1727660118679,6.2587,159.78,159.72,6.2609]
[1727660118845,18.13241595,159.77,159.72,6.2609]
[1727660119340,18.13241595,159.77,159.73,6.2605]
[1727660119545,24.39141595,159.77,159.71,21.9139]
[1727660119765,7.82454247,159.76,159.71,15.653]
[1727660120555,6.2598,159.75,159.69,6.2621]
[1727660120753,1.56526994,159.74,159.69,6.2621]
[1727660120970,7.77776994,159.74,159.69,6.2621]
[1727660121266,14.03796994,159.74,159.69,6.2621]
[1727660121446,7.77776994,159.74,159.69,6.2621]
[1727660121649,1.56529331,159.73,159.69,6.2621]
[1727660121869,1.56529331,159.73,159.65,6.2633]
[1727660121870,6.2611,159.72,159.65,6.2633]
[1727660122066,6.2125,159.74,159.63,21.9245]
[1727660122067,6.2621,159.69,159.63,21.9245]
[1727660122270,16.69336113,159.68,159.63,15.6604]
[1727660122451,1.56588978,159.67,159.63,21.9248]
[1727660123175,1.56588978,159.67,159.64,6.264]
[1727660123369,15.1275,159.68,159.64,6.264]
[1727660123671,1.56588952,159.67,159.64,6.264]
[1727660124066,1.56588952,159.67,159.63,15.6604]
[1727660124371,1.56588952,159.67,159.63,21.9248]
[1727660124759,1.56588952,159.67,159.64,6.264]
[1727660125266,15.1275,159.68,159.67,6.2629]
[1727660125458,15.1216,159.72,159.67,6.2629]
[1727660125665,1.56558231,159.71,159.67,6.2629]
[1727660126469,1.56558231,159.71,159.68,6.2623]
[1727660126770,15.1216,159.72,159.7,6.2616]
[1727660126971,15.1216,159.72,159.71,6.2613]
[1727660127347,6.2125,159.74,159.7,0.45897495]
[1727660127548,6.2125,159.74,159.72,6.2608]
[1727660127949,6.2125,159.74,159.69,15.6552]
[1727660128157,6.2125,159.74,159.71,6.2613]
[1727660128362,1.56515275,159.73,159.69,15.6552]
[1727660128546,1.56515275,159.73,159.69,21.9169]
[1727660128976,1.56515275,159.73,159.69,15.6552]
[1727660130170,7.82565275,159.73,159.69,15.6552]
[1727660130586,1.56515275,159.73,159.66,6.2629]
[1727660130758,6.2625,159.68,159.58,6.55162335]
[1727660130953,6.2617,159.7,159.64,6.264]
[1727660131259,7.82806499,159.69,159.64,6.264]
[1727660131460,6.2621,159.69,159.64,6.264]
[1727660132978,1.5659149,159.68,159.57,15.6666]
[1727660133275,1.5659149,159.68,159.61,6.2652]
[1727660133276,6.2635,159.66,159.61,6.2652]
[1727660133456,1.56614085,159.65,159.61,6.2652]
[1727660134483,15.2235,159.62,159.56,15.6679]
[1727660134688,15.2235,159.62,159.57,6.2667]
[1727660134689,1.56653162,159.61,159.57,6.2667]
[1727660135054,1.56653162,159.61,159.56,15.6679]
[1727660135055,7.83183162,159.61,159.56,21.9349]
[1727660135255,15.2235,159.62,159.57,6.2667]
[1727660135754,15.2235,159.62,159.56,15.6679]
[1727660135977,15.2235,159.62,159.57,0.46187353]
[1727660136180,15.2235,159.62,159.59,6.266]
[1727660137287,15.2235,159.62,159.6,6.2654]
[1727660138123,15.2235,159.62,159.59,15.6648]
[1727660138380,15.2235,159.62,159.6,6.2655]
[1727660139386,1.56627895,159.61,159.54,0.823926]
[1727660139574,6.2663,159.59,159.54,7.091926]
[1727660139783,1.56674386,159.58,159.54,7.091926]
[1727660140363,1.56674386,159.58,159.55,6.2672]
[1727660140672,21.4884,159.62,159.56,0.4625225]
[1727660140872,1.56661672,159.61,159.54,16.493026]
[1727660141299,6.4315,159.6,159.55,6.2672]
[1727660141584,1.56670539,159.59,159.55,6.2672]
[1727660141884,6.4315,159.6,159.54,0.823926]
[1727660142069,6.4315,159.6,159.56,15.6672]
[1727660142379,6.4315,159.6,159.57,6.2668]
[1727660142688,6.4315,159.6,159.56,21.9343]
[1727660142982,1.56662419,159.59,159.56,21.9343]
[1727660143574,1.56662419,159.59,159.54,0.823926]
[1727660143879,6.2669,159.57,159.54,0.823926]
[1727660144077,1.56709235,159.56,159.54,0.823926]
[1727660144794,6.2676,159.55,159.54,0.823926]
[1727660144966,15.9248,159.55,159.48,15.6752]
[1727660145288,6.2688,159.52,159.48,15.6752]
[1727660145471,1.56753382,159.51,159.48,15.6752]
[1727660146075,6.2685,159.53,159.48,15.6752]
[1727660147191,15.2821,159.51,159.42,6.2726]
[1727660147502,6.2712,159.46,159.4,6.2735]
[1727660147797,6.4948,159.47,159.43,6.2722]
[1727660147987,6.4948,159.47,159.44,6.2719]
[1727660148368,6.4948,159.47,159.43,6.2723]
[1727660149600,21.3854,159.51,159.43,0.46527835]
[1727660149765,6.2705,159.48,159.42,21.9539]
[1727660149971,6.2711,159.46,159.4,6.2734]
[1727660150276,15.1486,159.44,159.38,16.509026]
[1727660150473,15.1486,159.44,159.41,6.2729]
[1727660150798,15.1486,159.44,159.42,6.2727]
[1727660150971,15.1486,159.44,159.43,6.2723]
[1727660151177,15.1486,159.44,159.41,15.6826]
[1727660152094,15.1486,159.44,159.42,6.2727]
[1727660153206,7.59904965,159.43,159.41,15.6826]
[1727660153501,7.59904965,159.43,159.38,7.097826]
[1727660153799,13.87144965,159.43,159.38,7.097826]
[1727660154498,6.2728,159.42,159.38,0.823926]
[1727660154675,7.8421861,159.41,159.38,0.823926]
[1727660155082,6.2739,159.39,159.38,0.823926]
[1727660155280,7.84272742,159.39,159.38,0.823926]
[1727660155706,6.276,159.34,159.3,15.6935]
[1727660155913,1.56911017,159.33,159.3,21.9708]
[1727660156092,1.56922191,159.35,159.31,6.277]
[1727660156284,1.56922191,159.35,159.3,15.6935]
[1727660156285,7.84472191,159.35,159.3,15.6935]
[1727660156491,15.4145,159.38,159.3,15.6935]
[1727660156492,6.3667,159.34,159.31,6.2769]
[1727660156786,1.56929485,159.33,159.3,15.6935]
[1727660157801,6.3667,159.34,159.3,15.6935]
[1727660157802,1.56925744,159.32,159.3,15.6935]
[1727660158301,1.56925744,159.32,159.27,20.0]
[1727660158515,1.56925744,159.32,159.28,6.2782]
[1727660159584,6.3667,159.34,159.29,6.2774]
[1727660160002,6.3667,159.34,159.3,0.46845273]
[1727660160203,6.3667,159.34,159.29,15.6939]
[1727660160204,6.3667,159.34,159.32,6.2766]
[1727660160797,6.3667,159.34,159.33,6.2762]
[1727660160985,21.6888,159.38,159.34,6.2758]
[1727660160986,21.7956,159.38,159.34,6.2758]
[1727660161184,21.7956,159.38,159.32,21.9676]
[1727660161399,28.0699,159.38,159.32,21.9676]
[1727660161704,1.56905943,159.37,159.32,21.9676]
[1727660162004,7.84375943,159.37,159.32,21.9676]
[1727660162602,21.7956,159.38,159.35,6.2754]
[1727660162801,21.7956,159.38,159.35,5.7754]
[1727660162987,1.56888483,159.37,159.32,15.6913]
[1727660163388,1.56888483,159.37,159.33,6.2761]
[1727660164489,1.56888483,159.37,159.32,21.9679]
[1727660164807,7.84358483,159.37,159.32,21.9679]
[1727660165106,1.56888483,159.37,159.32,15.6913]
[1727660165405,1.56888483,159.37,159.33,6.2762]
[1727660165709,1.56911321,159.36,159.33,6.2758]
[1727660165891,1.56911321,159.36,159.32,21.9676]
[1727660166698,21.7956,159.38,159.33,6.276]
[1727660166895,21.7956,159.38,159.32,15.6913]
[1727660167097,1.56890694,159.37,159.34,6.2755]
[1727660167494,21.7956,159.38,159.3,31.386]
[1727660167808,21.7956,159.38,159.37,6.2747]
[1727660168030,21.7956,159.38,159.34,15.6887]
[1727660168186,1.56888161,159.37,159.34,21.9645]
[1727660168688,1.56888161,159.37,159.35,6.2752]
[1727660168889,21.7956,159.38,159.36,6.275]
[1727660169408,16.5345,159.42,159.38,6.2742]
[1727660169622,1.56856952,159.41,159.37,21.9613]
[1727660170305,16.5345,159.42,159.38,6.2742]
[1727660170491,16.5345,159.42,159.39,6.2738]
[1727660171789,16.5345,159.42,159.4,6.2734]
[1727660171991,16.5345,159.42,159.39,15.6839]
[1727660172198,16.5345,159.42,159.41,6.2731]
[1727660172401,16.5345,159.42,159.4,6.2735]
[1727660172594,16.5345,159.42,159.41,6.2731]
[1727660172909,6.2712,159.46,159.43,6.2722]
[1727660172910,15.5056,159.46,159.43,6.2722]
[1727660173109,15.5056,159.46,159.44,6.2718]
[1727660173408,1.56804347,159.45,159.42,6.2727]
[1727660175617,1.56804347,159.45,159.35,6.40588]
[1727660175814,1.56804347,159.45,159.31,24.68677733]
[1727660175815,6.2732,159.41,159.36,6.2747]
[1727660176024,7.8422115,159.4,159.35,6.2753]
[1727660176608,1.56880197,159.39,159.35,6.2753]
[1727660177108,1.56880197,159.39,159.34,15.6889]
[1727660177413,24.027864,159.45,159.34,15.6889]
[1727660178318,6.2735,159.4,159.35,6.2754]
[1727660178695,24.027864,159.45,159.34,15.6889]
[1727660178896,1.56871573,159.44,159.37,6.2747]
[1727660179202,0.25098,159.45,159.37,6.2747]
[1727660179598,6.2719,159.44,159.39,6.2739]
[1727660179802,15.5056,159.46,159.39,15.6844]
[1727660180005,1.56830615,159.45,159.39,15.6844]
[1727660180304,6.2728,159.42,159.37,6.2746]
[1727660180502,1.56846443,159.41,159.38,6.2743]
[1727660180917,1.56846443,159.41,159.35,23.776884]
[1727660180918,6.2719,159.44,159.39,6.2735]
[1727660181111,1.56834532,159.43,159.37,15.6859]
[1727660181412,7.84074532,159.43,159.38,6.274]
[1727660182014,1.56846079,159.42,159.38,6.274]
[1727660182417,21.7768,159.46,159.39,16.1504296]
[1727660182599,15.5056,159.46,159.42,6.2726]
[1727660182998,15.5056,159.46,159.45,6.2715]
[1727660183319,6.2687,159.53,159.45,6.2715]
[1727660183320,6.2689,159.52,159.47,6.2707]
[1727660183529,28.8345,159.53,159.48,6.2703]
[1727660183816,28.8345,159.53,159.45,15.678]
[1727660183817,1.56752123,159.52,159.46,6.2707]
[1727660184225,1.56752123,159.52,159.47,6.2706]
[1727660184428,28.8344,159.53,159.47,6.2706]
[1727660184599,1.5676028,159.52,159.47,6.2706]
[1727660185227,7.8364028,159.52,159.47,6.2706]
[1727660185731,22.566,159.53,159.48,6.2701]
[1727660185900,1.56751434,159.52,159.48,6.2701]
[1727660187525,15.938,159.53,159.5,6.2695]
[1727660187835,1.56740047,159.52,159.46,26.2711]
[1727660187999,1.56765193,159.52,159.46,20.0]
[1727660188205,1.56765193,159.52,159.48,6.2702]
[1727660188419,1.56765193,159.52,159.46,20.0]
[1727660188727,1.56765193,159.52,159.47,6.2706]
[1727660189400,7.83645193,159.52,159.47,6.2706]
[1727660190845,15.938,159.53,159.45,15.6788]
[1727660191121,6.2688,159.52,159.47,6.2705]
[1727660191721,1.56759082,159.51,159.47,6.2705]
[1727660192118,1.56759082,159.51,159.46,6.2711]
[1727660192421,6.2688,159.52,159.47,6.2707]
[1727660192905,1.56759994,159.51,159.47,6.2707]
[1727660193105,7.83699994,159.51,159.46,6.2711]
[1727660193406,7.83732781,159.5,159.45,21.9502]
[1727660193820,6.27,159.49,159.45,15.6788]
[1727660194018,7.70382781,159.5,159.39,31.3677]
[1727660194019,6.2714,159.46,159.39,31.3677]
[1727660194210,6.1361,159.5,159.33,30.69437733]
[1727660194211,17.30936004,159.45,159.33,30.69437733]
[1727660194535,17.30936004,159.45,159.36,6.2747]
[1727660194536,6.2728,159.42,159.36,6.2747]
[1727660194736,15.7412,159.45,159.35,30.0]
[1727660194737,6.1361,159.43,159.35,30.0]
[1727660194918,12.4085,159.43,159.38,6.2742]
[1727660195108,1.56845517,159.42,159.38,6.2742]
[1727660195304,1.56845517,159.42,159.36,15.6868]
[1727660195716,12.4088,159.43,159.37,6.2746]
[1727660196132,12.4088,159.43,159.37,6.74108813]
[1727660196425,12.4088,159.43,159.37,6.2746]
[1727660197434,7.84123516,159.42,159.37,6.2746]
[1727660199427,6.2731,159.41,159.36,21.9618]
[1727660199718,6.2727,159.42,159.37,6.2746]
[1727660200333,6.1361,159.43,159.37,6.2746]
[1727660200648,6.1361,159.43,159.39,6.2737]
[1727660200838,6.1361,159.43,159.4,6.2734]
[1727660201929,15.7412,159.45,159.4,15.683]
[1727660202518,15.7412,159.45,159.42,6.2724]
[1727660202720,15.7412,159.45,159.43,6.2722]
[1727660202937,6.1263,159.47,159.37,23.776884]
[1727660202938,6.1263,159.47,159.44,6.2719]
[1727660203143,1.56793323,159.46,159.42,15.681]
[1727660203439,6.1263,159.47,159.42,15.681]
[1727660203625,6.1263,159.47,159.44,6.2718]
[1727660203935,1.56793261,159.46,159.43,6.2723]
[1727660204315,6.1263,159.47,159.42,15.681]
[1727660204516,6.1263,159.47,159.43,6.2723]
[1727660205020,1.56793484,159.46,159.43,6.2723]
[1727660205255,1.56793484,159.46,159.42,21.9536]
[1727660205634,1.56793484,159.46,159.31,15.2382]
[1727660205822,15.38658,159.45,159.33,30.0]
[1727660206032,15.38658,159.45,159.35,21.9632]
[1727660206033,6.2735,159.4,159.35,21.9632]
[1727660206234,1.56866321,159.39,159.36,6.275]
[1727660207128,1.56866626,159.4,159.37,6.2743]
[1727660207435,6.2728,159.42,159.37,6.2743]
[1727660207642,1.56855343,159.41,159.37,6.2743]
[1727660207932,1.56855343,159.41,159.38,6.2743]
[1727660208648,1.56854953,159.42,159.38,6.2743]
[1727660209145,0.12549,159.41,159.3,31.386]
[1727660209347,0.12549,159.41,159.31,15.6917]
[1727660209348,22.0659,159.37,159.31,15.6917]
[1727660209641,1.56906552,159.36,159.31,21.9687]
[1727660209823,7.84416552,159.36,159.31,21.9687]
[1727660210228,7.84416552,159.36,159.31,15.6917]
[1727660210636,6.2757,159.35,159.27,15.6958]
[1727660210839,1.56918858,159.34,159.27,15.6958]
[1727660211121,8.04938858,159.34,159.27,21.9742]
[1727660211322,6.4802,159.34,159.27,15.6958]
[1727660211631,6.2754,159.36,159.27,15.6958]
[1727660211817,1.56912102,159.36,159.3,15.6936]
[1727660212142,1.56912102,159.36,159.32,6.2766]
[1727660212316,15.7909,159.37,159.33,6.2761]
[1727660212722,1.56902703,159.36,159.32,6.2766]
[1727660213036,15.7909,159.37,159.33,6.2762]
[1727660213240,1.56900467,159.36,159.33,6.2762]
[1727660213632,15.7909,159.37,159.33,15.6906]
[1727660213838,15.7909,159.37,159.35,6.2754]
[1727660214735,17.3597836,159.37,159.33,21.9664]
[1727660215122,15.7909,159.37,159.34,6.2757]
[1727660215529,16.5235,159.41,159.35,16.15527795]
[1727660215735,1.56866089,159.4,159.35,15.6878]
[1727660216651,16.5235,159.41,159.35,15.6878]
[1727660216844,16.5235,159.41,159.4,6.2735]
[1727660217038,6.3927,159.42,159.4,6.2735]
[1727660217428,6.3927,159.42,159.39,15.6847]
[1727660217429,1.56846058,159.41,159.39,15.6847]
[1727660218149,1.56846058,159.41,159.36,15.6877]
[1727660218340,1.56846058,159.41,159.38,6.2742]
[1727660219324,1.56846058,159.41,159.37,26.2746]
[1727660219945,6.3927,159.42,159.37,26.2746]
[1727660220245,6.3927,159.42,159.37,6.2746]
[1727660220546,1.56856961,159.41,159.37,6.2746]
[1727660220763,6.3927,159.42,159.37,6.2746]
[1727660220926,1.56856957,159.41,159.37,6.2746]
[1727660221243,6.3927,159.42,159.38,6.2743]
[1727660221622,1.56848049,159.41,159.38,6.2743]
[1727660222248,1.56848049,159.41,159.3,24.68677733]
[1727660222435,6.274,159.39,159.34,6.2755]
[1727660222744,22.7714,159.38,159.33,21.9668]
[1727660222958,1.56896763,159.37,159.33,21.9668]
[1727660223646,1.56896763,159.37,159.34,20.0]
[1727660223944,7.84366763,159.37,159.33,15.6906]
[1727660224124,7.84366763,159.37,159.32,20.0]
[1727660224323,6.2752,159.36,159.31,6.2767]
[1727660224524,1.56923547,159.35,159.31,6.2767]
[1727660224739,14.32853547,159.35,159.3,15.6935]
[1727660224946,6.2763,159.33,159.28,6.2781]
[1727660225444,12.7596,159.35,159.3,6.2771]
[1727660226246,6.4838,159.35,159.31,6.277]
[1727660226446,1.56932528,159.34,159.3,6.2774]
[1727660226746,1.56932528,159.34,159.29,15.6937]
[1727660226922,7.84532528,159.34,159.29,21.9714]
[1727660227126,12.7593,159.35,159.3,6.2772]
[1727660227525,1.56933422,159.34,159.3,6.2772]
[1727660228824,1.56933422,159.34,159.29,21.9715]
[1727660228825,7.84513422,159.34,159.29,21.9715]
[1727660229537,6.2758,159.34,159.29,21.9715]
[1727660230150,12.7593,159.35,159.3,6.2773]
[1727660230327,6.4838,159.35,159.32,6.2766]
[1727660230658,1.56914681,159.34,159.3,6.2771]
[1727660231065,6.4838,159.35,159.3,0.46834922]
[1727660231241,6.4838,159.35,159.29,15.6937]
[1727660231242,1.56916839,159.34,159.29,15.6937]
[1727660231943,6.4838,159.35,159.29,15.6937]
[1727660232131,16.497,159.38,159.36,6.275]
[1727660232325,16.497,159.38,159.37,6.2747]
[1727660232532,15.4591,159.42,159.38,6.2743]
[1727660233450,1.56850505,159.41,159.39,6.2738]
[1727660234052,1.56850505,159.41,159.36,15.6868]
[1727660234352,1.56850505,159.41,159.38,6.2742]
[1727660234855,15.4591,159.42,159.38,6.2742]
[1727660235039,17.02757399,159.42,159.38,6.2742]
[1727660235931,23.30027399,159.42,159.37,6.2746]
[1727660236642,23.30027399,159.42,159.34,6.2755]
[1727660236643,6.2739,159.39,159.34,6.2755]
[1727660236853,1.56880949,159.38,159.33,21.9667]
[1727660237054,7.84320949,159.38,159.33,21.9667]
[1727660237456,7.84320949,159.38,159.27,54.0998]
[1727660237457,6.2753,159.36,159.32,20.0]
[1727660237651,1.56913902,159.35,159.32,20.0]
[1727660238144,0.25098,159.41,159.31,20.0]
[1727660238349,6.2742,159.39,159.33,6.2762]
[1727660238831,15.4591,159.42,159.32,15.96714782]
[1727660239033,15.4591,159.42,159.34,0.46740381]
[1727660239242,15.4591,159.42,159.33,43.776884]
[1727660239454,15.4591,159.42,159.37,6.2743]
[1727660239455,1.56865248,159.41,159.37,6.2743]
[1727660240846,21.7321,159.42,159.37,6.2743]
[1727660241352,15.4591,159.42,159.38,6.2741]
[1727660241560,1.56855194,159.41,159.38,6.2741]
[1727660242539,1.56855194,159.41,159.36,15.687]
[1727660242861,6.274,159.39,159.34,6.2755]
[1727660243036,1.56893342,159.38,159.34,6.2755]
[1727660243237,6.2736,159.4,159.35,6.2754]
[1727660243437,7.8427722,159.39,159.34,6.2758]
[1727660243935,7.8427722,159.39,159.31,31.3835]
[1727660243936,1.5688722,159.39,159.31,31.3835]
[1727660244144,15.4591,159.42,159.38,6.2739]
[1727660244357,15.4591,159.42,159.34,43.776884]
[1727660244548,15.4591,159.42,159.39,6.2739]
[1727660244754,15.4591,159.42,159.41,6.2731]
[1727660245056,15.4591,159.42,159.4,15.6837]
[1727660245057,16.3673,159.46,159.42,6.2727]
[1727660245257,7.83971744,159.45,159.4,15.6837]
[1727660245835,6.2715,159.45,159.4,21.9569]
[1727660246362,16.3673,159.46,159.42,15.6811]
[1727660248145,16.3673,159.46,159.43,6.2722]
[1727660248349,16.2531,159.5,159.45,6.2715]
[1727660248675,7.83785916,159.49,159.44,6.2719]
[1727660252066,6.27,159.49,159.44,6.2719]
[1727660252263,1.56795427,159.48,159.44,6.2719]
[1727660253048,7.83855427,159.48,159.43,20.0]
[1727660253368,6.2706,159.48,159.43,26.2721]
[1727660254070,1.56801402,159.47,159.43,26.2721]
[1727660255044,1.56801402,159.47,159.43,6.2721]
[1727660256344,1.56801402,159.47,159.39,15.6844]
[1727660256653,6.2719,159.45,159.41,6.2731]
[1727660257567,1.5682999,159.44,159.41,6.2731]
[1727660257943,1.5682999,159.44,159.4,26.2734]
[1727660258144,1.5682999,159.44,159.4,6.2734]
[1727660258365,1.5682999,159.44,159.39,21.9582]
[1727660258745,0.12549,159.47,159.39,21.9582]
[1727660258945,6.2719,159.45,159.39,21.9582]
[1727660259156,0.12549,159.47,159.41,6.2731]
[1727660259467,1.69375995,159.47,159.41,6.2731]
[1727660259663,1.69375995,159.47,159.39,15.6844]
[1727660259664,6.2715,159.45,159.4,6.2734]
[1727660259975,1.56836828,159.44,159.4,6.2734]
[1727660260269,6.2715,159.45,159.4,6.2734]
[1727660262347,6.2708,159.47,159.42,6.2726]
[1727660264365,31.9278,159.5,159.42,6.2726]
[1727660264545,6.2711,159.46,159.42,6.2726]
[1727660264747,1.56820733,159.45,159.4,6.2731]
[1727660265770,0.25098,159.47,159.4,6.2731]
[1727660265955,1.56837022,159.46,159.4,6.2731]
[1727660266156,6.272,159.44,159.4,6.2731]
[1727660266362,1.56836955,159.43,159.4,6.2731]
[1727660268844,1.56836807,159.44,159.4,6.2731]
[1727660269048,16.2362,159.43,159.37,6.2746]
[1727660269244,6.2731,159.41,159.37,6.2746]
[1727660269474,1.56868599,159.4,159.37,6.2746]
[1727660269678,1.56868599,159.4,159.34,6.2758]
[1727660269855,6.2743,159.38,159.34,6.2758]
[1727660270051,1.56900021,159.37,159.33,6.2762]
[1727660270264,7.84370021,159.37,159.32,21.9676]
[1727660270451,1.56916328,159.36,159.32,21.9676]
[1727660270776,1.56916328,159.36,159.26,6.6072]
[1727660270777,16.5895,159.35,159.26,6.6072]
[1727660270947,1.56932437,159.34,159.3,6.2774]
[1727660271269,22.865,159.35,159.27,61.3917]
[1727660271270,16.5895,159.35,159.27,61.3917]
[1727660271603,22.8634,159.39,159.34,6.2755]
[1727660271761,16.5895,159.39,159.35,6.2754]
[1727660271947,16.5895,159.39,159.33,15.6897]
[1727660271948,16.5895,159.39,159.36,6.275]
[1727660272154,16.5895,159.39,159.35,6.2754]
[1727660272456,1.56884708,159.38,159.35,6.2754]
[1727660272657,16.5895,159.39,159.36,15.6873]
[1727660272870,16.5895,159.39,159.38,6.2743]
[1727660273969,16.5895,159.39,159.37,6.2746]
[1727660274558,15.7465,159.43,159.36,15.6873]
[1727660274765,22.0188,159.43,159.38,6.2742]
[1727660275362,1.56860057,159.42,159.38,6.2742]
[1727660275715,15.7465,159.43,159.39,6.2738]
[1727660276475,1.56845326,159.42,159.39,6.2738]
[1727660277159,1.5684217,159.43,159.39,20.0]
[1727660277482,6.2712,159.46,159.41,6.273]
[1727660277661,1.56821678,159.45,159.41,6.273]
[1727660278062,7.83991678,159.45,159.4,15.6828]
[1727660278282,6.2722,159.44,159.39,6.2735]
[1727660278587,6.2712,159.46,159.41,6.2731]
[1727660278882,7.83976551,159.45,159.41,6.2731]
[1727660279380,7.83976551,159.45,159.4,6.2735]
[1727660281700,6.2729,159.42,159.36,21.9621]
[1727660281886,1.56865646,159.41,159.36,21.9621]
[1727660282068,15.8848,159.4,159.33,15.6904]
[1727660282388,6.2746,159.38,159.33,21.9666]
[1727660282601,1.56901067,159.37,159.33,21.9666]
[1727660284876,1.56901067,159.37,159.31,20.0]
[1727660285182,15.8848,159.4,159.31,20.0]
[1727660285183,6.2755,159.35,159.31,20.0]
[1727660285376,1.56925088,159.34,159.31,26.277]
[1727660285581,6.2751,159.36,159.31,26.277]
[1727660285977,1.56924211,159.35,159.31,26.277]
[1727660286289,1.56924211,159.35,159.31,20.0]
[1727660286483,1.56924211,159.35,159.3,21.9707]
[1727660286670,6.2758,159.35,159.31,20.0]
[1727660287007,1.56927756,159.34,159.31,20.0]
[1727660287369,1.56927756,159.34,159.3,21.9707]
[1727660287587,6.2759,159.34,159.3,15.6934]
[1727660287795,1.56938899,159.33,159.3,15.6934]
[1727660289396,20.0,159.39,159.28,0.46851155]
[1727660289578,1.56900526,159.38,159.34,6.2757]
[1727660289772,6.2742,159.39,159.34,6.2757]
[1727660289974,15.8848,159.4,159.35,0.467271]
[1727660290185,15.8848,159.4,159.37,6.2746]
[1727660290389,15.8848,159.4,159.36,15.687]
[1727660290709,6.0792,159.41,159.37,6.2743]
[1727660290895,1.56853154,159.4,159.37,6.2743]
[1727660291192,1.56853154,159.4,159.37,20.0]
[1727660291377,16.144,159.44,159.38,15.6849]
[1727660291591,1.56831926,159.43,159.38,15.6849]
[1727660291889,1.56831926,159.43,159.39,6.2739]
[1727660293484,1.56831926,159.43,159.38,15.6849]
[1727660293689,1.56831926,159.43,159.35,15.6887]
[1727660294177,6.2731,159.41,159.36,6.2749]
[1727660294377,1.56869326,159.4,159.36,6.2749]
[1727660297779,6.2727,159.42,159.37,6.2746]
[1727660298095,16.144,159.44,159.4,6.2735]
[1727660298510,1.56835098,159.43,159.4,6.2735]
[1727660301012,6.2727,159.42,159.38,15.6857]
[1727660301184,22.416,159.44,159.39,6.2738]
[1727660301383,7.84068745,159.43,159.39,6.2738]
[1727660301697,17.71238745,159.44,159.38,15.6857]
[1727660302885,17.71238745,159.44,159.4,6.2732]
[1727660303072,18.60157043,159.53,159.4,15.6831]
[1727660303280,6.2707,159.48,159.43,6.2723]
[1727660303495,6.2707,159.47,159.43,6.2723]
[1727660303703,6.2704,159.48,159.43,6.2723]
[1727660303876,23.2279,159.52,159.48,6.2703]
[1727660304187,1.5675611,159.51,159.39,46.84935777]
[1727660304384,1.5675611,159.51,159.41,20.0]
[1727660304596,6.2711,159.46,159.41,6.2731]
[1727660304798,1.56811326,159.45,159.41,6.2731]
[1727660305029,1.56811326,159.45,159.38,23.776884]
[1727660305030,23.95131326,159.45,159.39,21.9573]
[1727660305300,7.84021822,159.44,159.39,21.9573]
[1727660305880,1.56831822,159.44,159.39,15.6838]
[1727660306083,22.2907,159.45,159.41,6.2728]
[1727660307178,22.2907,159.45,159.42,6.2727]
[1727660307379,16.1116,159.45,159.42,6.2727]
[1727660310721,22.0591,159.49,159.43,15.6801]
[1727660311006,15.8592,159.49,159.46,6.271]
[1727660312090,6.4985,159.53,159.49,6.2699]
[1727660312291,8.06581998,159.53,159.49,6.2699]
[1727660312692,6.2688,159.52,159.47,21.9466]
[1727660312897,1.56754957,159.51,159.47,15.676]
[1727660313097,1.56754957,159.51,159.43,15.6799]
[1727660313392,6.27,159.49,159.44,26.2719]
[1727660313590,1.56779157,159.48,159.44,26.2719]
[1727660314120,1.56779157,159.48,159.43,21.9522]
[1727660314121,7.83809157,159.48,159.43,21.9522]
[1727660314291,1.56790109,159.47,159.43,21.9522]
[1727660314910,6.2692,159.51,159.46,6.2711]
[1727660315212,1.56760172,159.52,159.39,56.2553857]
[1727660315418,6.4985,159.53,159.39,56.2553857]
[1727660315419,12.7669,159.53,159.48,6.2702]